fUSD/lending_fUSD_20251014
["ID","MTS","AMOUNT","RATE_DAILY","PERIOD"]
[391284609,1760467855459,-731.3,0.00016438,2]
[391284610,1760467855468,-1328.18,0.00016438,2]
[391284611,1760467855478,-1486.1,0.00016438,2]
[391284612,1760467855487,-1032.32,0.00016438,2]
[391284613,1760467855497,-151.0,0.00016438,2]
[391284614,1760467855506,-500.0,0.00016438,2]
[391284615,1760467855516,-500.0,0.00016438,2]
[391284616,1760467855525,-500.0,0.00016438,2]
[391284617,1760467855535,-500.0,0.00016438,2]
[391284618,1760467855544,-695.89,0.00016438,2]
[391284619,1760467855554,-1331.3,0.00016438,2]
[391284620,1760467855564,-500.0,0.00016438,2]
[391284621,1760467855573,-1496.94,0.00016438,2]
[391284622,1760467855583,-1928.43,0.00016438,2]
[391284623,1760467855592,-500.0,0.00016438,2]
[391284624,1760467855602,-283.527601,0.00016438,2]
[391284625,1760467855612,-283.527601,0.00016438,2]
[391284626,1760467855621,-283.527601,0.00016438,2]
[391284627,1760467855631,-500.0,0.00016438,2]
[391284628,1760467855641,-1643.54,0.00016438,2]
[391284629,1760467855650,-283.527601,0.00016438,2]
[391284630,1760467855660,-2809.05,0.00016438,2]
[391284631,1760467855670,-283.527601,0.00016438,2]
[391284632,1760467855679,-607.38,0.00016438,2]
[391284633,1760467855690,-2270.79,0.00016438,2]
[391284634,1760467855700,-283.527601,0.00016438,2]
[391284635,1760467855709,-500.0,0.00016438,2]
[391284636,1760467855718,-500.0,0.00016438,2]
[391284637,1760467855732,-500.0,0.00016438,2]
[391284638,1760467855741,-283.527601,0.00016438,2]
[391284639,1760467855751,-500.0,0.00016438,2]
[391284640,1760467855761,-283.527601,0.00016438,2]
[391284641,1760467855771,-500.0,0.00016438,2]
[391284642,1760467855780,-283.527601,0.00016438,2]
[391284643,1760467855790,-371.32109811,0.00016438,2]
[391284644,1760467855801,-283.527601,0.00016438,2]
[391284645,1760467855810,-500.0,0.00016438,2]
[391284646,1760467855819,-283.527601,0.00016438,2]
[391284647,1760467855829,-283.527601,0.00016438,2]
[391284648,1760467855839,-500.0,0.00016438,2]
[391284649,1760467855848,-500.0,0.00016438,2]
[391284650,1760467855858,-697.35,0.00016438,2]
[391284651,1760467855867,-500.0,0.00016438,2]
[391284652,1760467855876,-894.95,0.00016438,2]
[391284653,1760467855886,-500.0,0.00016438,2]
[391284654,1760467855896,-3091.06,0.00016438,2]
[391284655,1760467855906,-647.26,0.00016438,2]
[391284656,1760467855917,-500.0,0.00016438,2]
[391284657,1760467855927,-500.0,0.00016438,2]
[391284658,1760467855936,-1670.48,0.00016438,2]
[391284659,1760467855946,-500.0,0.00016438,2]
[391284660,1760467855956,-657.52,0.00016438,2]
[391284661,1760467855965,-2750.1,0.00016438,2]
[391284662,1760467855977,-500.0,0.00016438,2]
[391284663,1760467855986,-593.67,0.00016438,2]
[391284664,1760467855996,-582.65,0.00016438,2]
[391284665,1760467856005,-1413.38,0.00016438,2]
[391284666,1760467856015,-662.88,0.00016438,2]
[391284667,1760467856024,-151.0,0.00016438,2]
[391284668,1760467856034,-151.0,0.00016438,2]
[391284669,1760467856043,-151.0,0.00016438,2]
[391284670,1760467856052,-500.0,0.00016438,2]
[391284671,1760467856062,-151.0,0.00016438,2]
[391284672,1760467856071,-151.0,0.00016438,2]
[391284673,1760467856080,-151.0,0.00016438,2]
[391284674,1760467856090,-668.73,0.00016438,2]
[391284675,1760467856100,-500.0,0.00016438,2]
[391284676,1760467856110,-500.0,0.00016438,2]
[391284677,1760467856120,-151.0,0.00016438,2]
[391284678,1760467856129,-151.0,0.00016438,2]
[391284679,1760467856138,-151.0,0.00016438,2]
[391284680,1760467856148,-151.0,0.00016438,2]
[391284681,1760467856157,-502.15,0.00016438,2]
[391284682,1760467856168,-151.0,0.00016438,2]
[391284683,1760467856177,-3463.74,0.00016438,2]
[391284684,1760467856187,-642.43,0.00016438,2]
[391284685,1760467856196,-500.0,0.00016438,2]
[391284686,1760467856209,-151.0,0.00016438,2]
[391284687,1760467856219,-906.17,0.00016438,2]
[391284688,1760467856228,-10889.51,0.00016438,2]
[391284689,1760467856237,-180.839844,0.00016438,2]
[391284690,1760467856247,-500.0,0.00016438,2]
[391284691,1760467856256,-180.839844,0.00016438,2]
[391284692,1760467856266,-500.0,0.00016438,2]
[391284693,1760467856275,-180.839844,0.00016438,2]
[391284694,1760467856285,-584.02,0.00016438,2]
[391284695,1760467856295,-1498.11,0.00016438,2]
[391284696,1760467856304,-500.0,0.00016438,2]
[391284697,1760467856314,-500.0,0.00016438,2]
[391284698,1760467856323,-180.839844,0.00016438,2]
[391284699,1760467856334,-180.839844,0.00016438,2]
[391284700,1760467856344,-180.839844,0.00016438,2]
[391284701,1760467856354,-881.64,0.00016438,2]
[391284702,1760467856363,-1761.26,0.00016438,2]
[391284703,1760467856373,-525.09,0.00016438,2]
[391284704,1760467856383,-180.839844,0.00016438,2]
[391284705,1760467856392,-180.839844,0.00016438,2]
[391284706,1760467856402,-180.839844,0.00016438,2]
[391284707,1760467856411,-2716.69,0.00016438,2]
[391284708,1760467856420,-180.839844,0.00016438,2]
[391284709,1760467856430,-180.839844,0.00016438,2]
[391284710,1760467856439,-500.0,0.00016438,2]
[391284711,1760467856448,-616.38821839,0.00016438,2]
[391284712,1760467856458,-912.38,0.00016438,2]
[391284713,1760467856467,-500.0,0.00016438,2]
[391284714,1760467856478,-500.0,0.00016438,2]
[391284715,1760467856487,-500.0,0.00016438,2]
[391284716,1760467856498,-151.0,0.00016438,2]
[391284717,1760467856507,-500.0,0.00016438,2]
[391284718,1760467856517,-151.0,0.00016438,2]
[391284719,1760467856527,-536.07,0.00016438,2]
[391284720,1760467856536,-750.59,0.00016438,2]
[391284721,1760467856546,-200.822979,0.00016438,2]
[391284722,1760467856554,-500.0,0.00016438,2]
[391284723,1760467856564,-200.822979,0.00016438,2]
[391284724,1760467856573,-500.0,0.00016438,2]
[391284725,1760467856583,-200.822979,0.00016438,2]
[391284726,1760467856592,-500.0,0.00016438,2]
[391284727,1760467856602,-6323.05,0.00016438,2]
[391284728,1760467856611,-500.0,0.00016438,2]
[391284729,1760467856620,-200.822979,0.00016438,2]
[391284730,1760467856629,-1565.82,0.00016438,2]
[391284731,1760467856639,-200.822979,0.00016438,2]
[391284732,1760467856648,-500.0,0.00016438,2]
[391284733,1760467856657,-200.822979,0.00016438,2]
[391284734,1760467856667,-670.73,0.00016438,2]
[391284735,1760467856676,-500.0,0.00016438,2]
[391284736,1760467856686,-200.822979,0.00016438,2]
[391284737,1760467856695,-200.822979,0.00016438,2]
[391284738,1760467856704,-180.839844,0.00016438,2]
[391284739,1760467856713,-200.822979,0.00016438,2]
[391284740,1760467856726,-500.0,0.00016438,2]
[391284741,1760467856735,-2965.92,0.00016438,2]
[391284742,1760467856744,-200.822979,0.00016438,2]
[391284743,1760467856753,-200.822979,0.00016438,2]
[391284744,1760467856763,-200.822979,0.00016438,2]
[391284745,1760467856773,-500.0,0.00016438,2]
[391284746,1760467856782,-1010.49,0.00016438,2]
[391284747,1760467856792,-500.0,0.00016438,2]
[391284748,1760467856803,-500.0,0.00016438,2]
[391284749,1760467856812,-516.12,0.00016438,2]
[391284750,1760467856821,-2122.93,0.00016438,2]
[391284751,1760467856831,-718.4,0.00016438,2]
[391284752,1760467856840,-500.0,0.00016438,2]
[391284753,1760467856850,-198.527848,0.00016438,2]
[391284754,1760467856859,-198.527848,0.00016438,2]
[391284755,1760467856869,-198.527848,0.00016438,2]
[391284756,1760467856879,-151.0,0.00016438,2]
[391284757,1760467856889,-151.0,0.00016438,2]
[391284758,1760467856899,-198.527848,0.00016438,2]
[391284759,1760467856909,-151.0,0.00016438,2]
[391284760,1760467856920,-198.527848,0.00016438,2]
[391284761,1760467856930,-500.0,0.00016438,2]
[391284762,1760467856940,-151.0,0.00016438,2]
[391284763,1760467856950,-198.527848,0.00016438,2]
[391284764,1760467857241,-500.0,0.00016438,2]
[391284765,1760467857251,-1214.56,0.00016438,2]
[391284766,1760467857260,-500.0,0.00016438,2]
[391284767,1760467857270,-151.0,0.00016438,2]
[391284768,1760467857279,-198.527848,0.00016438,2]
[391284769,1760467857289,-2279.31,0.00016438,2]
[391284770,1760467857298,-151.0,0.00016438,2]
[391284771,1760467857307,-500.0,0.00016438,2]
[391284772,1760467857316,-198.527848,0.00016438,2]
[391284773,1760467857325,-198.527848,0.00016438,2]
[391284774,1760467857335,-151.0,0.00016438,2]
[391284775,1760467857344,-1386.7,0.00016438,2]
[391284776,1760467857353,-198.527848,0.00016438,2]
[391284777,1760467857363,-500.0,0.00016438,2]
[391284778,1760467857372,-151.0,0.00016438,2]
[391284779,1760467857382,-198.527848,0.00016438,2]
[391284780,1760467857391,-2757.56,0.00016438,2]
[391284781,1760467857400,-151.0,0.00016438,2]
[391284782,1760467857409,-198.527848,0.00016438,2]
[391284783,1760467857420,-151.0,0.00016438,2]
[391284784,1760467857430,-500.0,0.00016438,2]
[391284785,1760467857439,-1519.47,0.00016438,2]
[391284786,1760467857448,-547.78801455,0.00016438,2]
[391284787,1760467857457,-500.0,0.00016438,2]
[391284788,1760467857467,-505.28,0.00016438,2]
[391284789,1760467857476,-500.0,0.00016438,2]
[391284790,1760467857485,-151.0,0.00016438,2]
[391284791,1760467857494,-154.082867,0.00016438,2]
[391284792,1760467857504,-274.05361104,0.00016438,2]
[391284793,1760467857513,-500.0,0.00016438,2]
[391284794,1760467857522,-2197.34,0.00016438,2]
[391284795,1760467857531,-500.0,0.00016438,2]
[391284796,1760467857540,-500.0,0.00016438,2]
[391284797,1760467857550,-500.0,0.00016438,2]
[391284798,1760467857560,-500.0,0.00016438,2]
[391284799,1760467857569,-500.0,0.00016438,2]
[391284800,1760467857578,-1046.56,0.00016438,2]
[391284801,1760467857587,-1785.78,0.00016438,2]
[391284802,1760467857597,-583.130177,0.00016438,2]
[391284803,1760467857606,-583.130177,0.00016438,2]
[391284804,1760467857616,-662.08,0.00016438,2]
[391284805,1760467857625,-583.130177,0.00016438,2]
[391284806,1760467857635,-1011.13,0.00016438,2]
[391284807,1760467857644,-500.0,0.00016438,2]
[391284808,1760467857653,-500.0,0.00016438,2]
[391284809,1760467857662,-583.130177,0.00016438,2]
[391284810,1760467857672,-583.130177,0.00016438,2]
[391284811,1760467857682,-151.0,0.00016438,2]
[391284812,1760467857691,-2257.05,0.00016438,2]
[391284813,1760467857700,-583.130177,0.00016438,2]
[391284814,1760467857709,-151.0,0.00016438,2]
[391284815,1760467857719,-151.0,0.00016438,2]
[391284816,1760467857732,-524.7,0.00016438,2]
[391284817,1760467857742,-583.130177,0.00016438,2]
[391284818,1760467857751,-583.130177,0.00016438,2]
[391284819,1760467857760,-583.130177,0.00016438,2]
[391284820,1760467857770,-1628.98,0.00016438,2]
[391284821,1760467857779,-151.0,0.00016438,2]
[391284822,1760467857789,-2543.75,0.00016438,2]
[391284823,1760467857800,-561.2,0.00016438,2]
[391284824,1760467857808,-583.130177,0.00016438,2]
[391284825,1760467857818,-1613.9,0.00016438,2]
[391284826,1760467857827,-583.130177,0.00016438,2]
[391284827,1760467857836,-1877.78,0.00016438,2]
[391284828,1760467857846,-887.76,0.00016438,2]
[391284829,1760467857855,-583.130177,0.00016438,2]
[391284830,1760467857864,-500.0,0.00016438,2]
[391284831,1760467857874,-500.0,0.00016438,2]
[391284832,1760467857883,-500.0,0.00016438,2]
[391284833,1760467857892,-905.43,0.00016438,2]
[391284834,1760467857902,-602.73,0.00016438,2]
[391284835,1760467857911,-1028.39,0.00016438,2]
[391284836,1760467857920,-675.3,0.00016438,2]
[391284837,1760467857930,-242.595473,0.00016438,2]
[391284838,1760467857939,-1406.14,0.00016438,2]
[391284839,1760467857948,-242.595473,0.00016438,2]
[391284840,1760467857957,-500.0,0.00016438,2]
[391284841,1760467857967,-500.0,0.00016438,2]
[391284842,1760467857976,-242.595473,0.00016438,2]
[391284843,1760467857985,-354.49218029,0.00016438,2]
[391284844,1760467857994,-242.595473,0.00016438,2]
[391284845,1760467858005,-1698.96,0.00016438,2]
[391284846,1760467858014,-500.0,0.00016438,2]
[391284847,1760467858023,-242.595473,0.00016438,2]
[391284848,1760467858032,-1545.87,0.00016438,2]
[391284849,1760467858042,-242.595473,0.00016438,2]
[391284850,1760467858051,-362.26789947,0.00016438,2]
[391284851,1760467858060,-242.595473,0.00016438,2]
[391284852,1760467858069,-151.0,0.00016438,2]
[391284853,1760467858079,-242.595473,0.00016438,2]
[391284854,1760467858088,-151.0,0.00016438,2]
[391284855,1760467858097,-242.595473,0.00016438,2]
[391284856,1760467858107,-500.0,0.00016438,2]
[391284857,1760467858116,-151.0,0.00016438,2]
[391284858,1760467858125,-242.595473,0.00016438,2]
[391284859,1760467858134,-500.0,0.00016438,2]
[391284860,1760467858143,-151.0,0.00016438,2]
[391284861,1760467858152,-242.595473,0.00016438,2]
[391284862,1760467858162,-151.0,0.00016438,2]
[391284863,1760467858172,-242.595473,0.00016438,2]
[391284864,1760467858181,-647.76,0.00016438,2]
[391284865,1760467858192,-151.0,0.00016438,2]
[391284866,1760467858200,-3728.26,0.00016438,2]
[391284867,1760467858210,-1016.13,0.00016438,2]
[391284868,1760467858219,-574.0,0.00016438,2]
[391284869,1760467858228,-573.14,0.00016438,2]
[391284870,1760467858237,-1558.28,0.00016438,2]
[391284871,1760467858246,-500.0,0.00016438,2]
[391284872,1760467858255,-500.0,0.00016438,2]
[391284873,1760467858264,-500.0,0.00016438,2]
[391284874,1760467858274,-901.49,0.00016438,2]
[391284875,1760467858283,-563.69,0.00016438,2]
[391284876,1760467858292,-500.0,0.00016438,2]
[391284877,1760467858301,-500.0,0.00016438,2]
[391284878,1760467858310,-978.97,0.00016438,2]
[391284879,1760467858319,-1781.14,0.00016438,2]
[391284880,1760467858328,-652.67,0.00016438,2]
[391284881,1760467858338,-1019.46,0.00016438,2]
[391284882,1760467858347,-610.9274888,0.00016438,2]
[391284883,1760467858356,-500.0,0.00016438,2]
[391284884,1760467858365,-917.67,0.00016438,2]
[391284885,1760467858374,-500.0,0.00016438,2]
[391284886,1760467858383,-500.0,0.00016438,2]
[391284887,1760467858392,-500.0,0.00016438,2]
[391284888,1760467858402,-500.0,0.00016438,2]
[391284889,1760467858411,-500.0,0.00016438,2]
[391284890,1760467858421,-778.12,0.00016438,2]
[391284891,1760467858430,-500.0,0.00016438,2]
[391284892,1760467858440,-1731.02,0.00016438,2]
[391284893,1760467858449,-779.85,0.00016438,2]
[391284894,1760467858458,-500.0,0.00016438,2]
[391284895,1760467858468,-500.0,0.00016438,2]
[391284896,1760467858478,-3105.07,0.00016438,2]
[391284897,1760467858489,-500.0,0.00016438,2]
[391284898,1760467858498,-151.0,0.00016438,2]
[391284899,1760467858508,-746.68,0.00016438,2]
[391284900,1760467858517,-500.0,0.00016438,2]
[391284901,1760467858527,-2208.9,0.00016438,2]
[391284902,1760467858537,-1038.38,0.00016438,2]
[391284903,1760467858546,-532.69768508,0.00016438,2]
[391284904,1760467858555,-500.0,0.00016438,2]
[391284905,1760467858565,-2945.89,0.00016438,2]
[391284906,1760467858574,-500.0,0.00016438,2]
[391284907,1760467858584,-500.0,0.00016438,2]
[391284908,1760467858593,-500.0,0.00016438,2]
[391284909,1760467858602,-1087.64,0.00016438,2]
[391284910,1760467858612,-500.0,0.00016438,2]
[391284911,1760467858621,-500.0,0.00016438,2]
[391284912,1760467858631,-193.760138,0.00016438,2]
[391284913,1760467858640,-608.01,0.00016438,2]
[391284914,1760467858650,-500.0,0.00016438,2]
[391284915,1760467858659,-151.0,0.00016438,2]
[391284916,1760467858669,-688.61,0.00016438,2]
[391284917,1760467858679,-151.0,0.00016438,2]
[391284918,1760467858689,-500.0,0.00016438,2]
[391284919,1760467858698,-151.0,0.00016438,2]
[391284920,1760467858707,-227.72928,0.00016438,2]
[391284921,1760467858718,-2162.63,0.00016438,2]
[391284922,1760467858731,-500.0,0.00016438,2]
[391284923,1760467858740,-500.0,0.00016438,2]
[391284924,1760467858750,-1944.92,0.00016438,2]
[391284925,1760467858759,-500.0,0.00016438,2]
[391284926,1760467858769,-500.0,0.00016438,2]
[391284927,1760467858779,-500.0,0.00016438,2]
[391284928,1760467858788,-500.0,0.00016438,2]
[391284929,1760467858798,-500.0,0.00016438,2]
[391284930,1760467858808,-1274.58,0.00016438,2]
[391284931,1760467858817,-500.0,0.00016438,2]
[391284932,1760467858826,-500.0,0.00016438,2]
[391284933,1760467858835,-585.28,0.00016438,2]
[391284934,1760467858845,-500.0,0.00016438,2]
[391284935,1760467858854,-1012.23,0.00016438,2]
[391284936,1760467858864,-500.0,0.00016438,2]
[391284937,1760467858873,-500.0,0.00016438,2]
[391284938,1760467858882,-500.0,0.00016438,2]
[391284939,1760467858892,-500.0,0.00016438,2]
[391284940,1760467858901,-616.13275109,0.00016438,2]
[391284941,1760467858910,-500.0,0.00016438,2]
[391284942,1760467858921,-500.0,0.00016438,2]
[391284943,1760467858930,-500.0,0.00016438,2]
[391284944,1760467858939,-500.0,0.00016438,2]
[391284945,1760467858948,-500.0,0.00016438,2]
[391284946,1760467858958,-500.0,0.00016438,2]
[391284947,1760467858966,-546.91,0.00016438,2]
[391284948,1760467858975,-575.26,0.00016438,2]
[391284949,1760467858984,-763.94,0.00016438,2]
[391284950,1760467858993,-613.19,0.00016438,2]
[391284951,1760467859002,-500.0,0.00016438,2]
[391284952,1760467859011,-2309.41,0.00016438,2]
[391284953,1760467859021,-1186.62,0.00016438,2]
[391284954,1760467859031,-500.0,0.00016438,2]
[391284955,1760467859040,-151.0,0.00016438,2]
[391284956,1760467859049,-714.31,0.00016438,2]
[391284957,1760467859059,-176.031776,0.00016438,2]
[391284958,1760467859067,-151.0,0.00016438,2]
[391284959,1760467859076,-151.0,0.00016438,2]
[391284960,1760467859085,-500.0,0.00016438,2]
[391284961,1760467859095,-151.0,0.00016438,2]
[391284962,1760467859105,-2128.67,0.00016438,2]
[391284963,1760467859115,-500.0,0.00016438,2]
[391284964,1760467859125,-1090.45,0.00016438,2]
[391284965,1760467859134,-500.0,0.00016438,2]
[391284966,1760467859143,-2980.28,0.00016438,2]
[391284967,1760467859153,-1004.22,0.00016438,2]
[391284968,1760467859162,-780.94,0.00016438,2]
[391284969,1760467859171,-500.0,0.00016438,2]
[391284970,1760467859180,-500.0,0.00016438,2]
[391284971,1760467859189,-500.0,0.00016438,2]
[391284972,1760467859198,-500.0,0.00016438,2]
[391284973,1760467859207,-4153.59,0.00016438,2]
[391284974,1760467859216,-500.0,0.00016438,2]
[391284975,1760467859225,-1736.0,0.00016438,2]
[391284976,1760467859235,-4204.07,0.00016438,2]
[391284977,1760467859244,-500.0,0.00016438,2]
[391284978,1760467859253,-2151.42,0.00016438,2]
[391284979,1760467859263,-500.0,0.00016438,2]
[391284980,1760467859272,-500.0,0.00016438,2]
[391284981,1760467859280,-151.0,0.00016438,2]
[391284982,1760467859290,-151.0,0.00016438,2]
[391284983,1760467859300,-205.73760951,0.00016438,2]
[391284984,1760467859308,-500.0,0.00016473,2]
[391284985,1760467859318,-500.0,0.00016473,2]
[391284986,1760467859327,-500.0,0.00016473,2]
[391284987,1760467859336,-161.23605616,0.00016473,2]
[391284988,1760467859345,-501.13918386,0.00016473,2]
[391284989,1760467859354,-500.0,0.00016473,2]
[391284990,1760467859363,-500.0,0.00016473,2]
[391284991,1760467859372,-500.0,0.00016473,2]
[391284992,1760467859381,-500.0,0.00016473,2]
[391284993,1760467859390,-500.0,0.00016473,2]
[391284994,1760467859399,-2179.28149491,0.00016487,2]
[391284995,1760467859408,-150.0,0.00016492,2]
[391284996,1760467859418,-500.0,0.00016492,2]
[391284997,1760467859427,-500.0,0.00016492,2]
[391284998,1760467859437,-150.0,0.00016492,2]
[391284999,1760467859446,-202.91408941,0.00016492,2]
[391285000,1760467859456,-150.0,0.00016492,2]
[391285001,1760467859465,-150.0,0.00016492,2]
[391285002,1760467859475,-150.0,0.00016492,2]
[391285003,1760467859580,-500.0,0.00016492,2]
[391285004,1760467859590,-4131.19324452,0.000165,2]
[391285005,1760467859599,-251.99,0.0001651,2]
[391285006,1760467859607,-482.30290942,0.00016546,2]
[391285007,1760467859616,-150.0,0.00016547,2]
[391285008,1760467859625,-500.0,0.00016547,2]
[391285009,1760467859634,-500.0,0.00016547,2]
[391285010,1760467859643,-251.67894546,0.00016547,2]
[391285011,1760467859652,-282.56238177,0.00016547,2]
[391285012,1760467859661,-150.0,0.00016547,2]
[391285013,1760467859671,-150.0,0.00016547,2]
[391285014,1760467859681,-500.0,0.00016547,2]
[391285015,1760467859690,-2179.28149491,0.00016561,2]
[391285016,1760467859699,-497.58135028,0.00016581,2]
[391285017,1760467859708,-703.20060998,0.00016584,2]
[391285018,1760467859717,-363.09024146,0.0001659,2]
[391285019,1760467859730,-1000.0,0.00016597,2]
[391285020,1760467859739,-150.0,0.00016601,2]
[391285021,1760467859748,-350.0,0.00016601,2]
[391285022,1760467859757,-500.0,0.00016601,2]
[391285023,1760467859767,-251.54344574,0.00016601,2]
[391285024,1760467859777,-150.0,0.00016601,2]
[391285025,1760467859786,-528.0398,0.00016601,2]
[391285026,1760467859795,-653.65308346,0.00016612,2]
[391285027,1760467859804,-2179.28149491,0.00016635,2]
[391285028,1760467859814,-151.0,0.00016647,2]
[391285029,1760467859823,-200.0,0.00016647,2]
[391285030,1760467859832,-150.0,0.00016656,2]
[391285031,1760467859841,-150.0,0.00016656,2]
[391285032,1760467859850,-402.0,0.00016685,2]
[391285033,1760467859860,-936.10583267,0.00016702,2]
[391285034,1760467859869,-2179.28149491,0.0001671,2]
[391285035,1760467859878,-196.0,0.00016711,2]
[391285036,1760467859887,-250.0,0.00016711,2]
[391285037,1760467859896,-150.0,0.00016711,2]
[391285038,1760467859906,-300.0,0.00016711,2]
[391285039,1760467859915,-300.0,0.00016711,2]
[391285040,1760467859924,-333959.06466354,0.00016712,2]
[391285041,1760467860578,-2130.81016904,0.00016393,2]
[391285042,1760467860589,-500.0,0.00016438,2]
[391285043,1760467860598,-10689.10314417,0.00016712,2]
[391285044,1760467860613,-4117.96850006,0.00016712,2]
[391285094,1760469031460,-166.66,0.00014702,2]
[391285095,1760469031472,-893.95005348,0.00014857,2]
[391285096,1760469031481,-166.66,0.00015011,2]
[391285097,1760469031491,-666.0,0.00015089,3]
[391285098,1760469031500,-250.0,0.00015108,2]
[391285099,1760469031510,-122.32994652,0.00015318,7]
[391285100,1760469031521,-127.67005348,0.00015318,7]
[391285101,1760469031531,-169.1337952,0.00015318,2]
[391285102,1760469031540,-166.66,0.00015321,2]
[391285103,1760469031550,-799.13,0.00015482,2]
[391285104,1760469031560,-166.66,0.0001563,2]
[391285105,1760469031569,-200.0,0.0001564,2]
[391285106,1760469031579,-151.8563383,0.00015658,2]
[391285107,1760469031588,-254.22,0.00015757,2]
[391285108,1760469031597,-821.64375197,0.00015757,2]
[391285109,1760469031621,-988.75624803,0.00015757,2]
[391285110,1760469031630,-62.50915592,0.00015782,2]
[391285111,1760469031672,-937.49084408,0.00015782,2]
[391285112,1760469031681,-258.0,0.00015836,2]
[391285113,1760469031690,-645.0606167,0.00015866,2]
[391285114,1760469031700,-277.35679052,0.00015866,2]
[391285115,1760469031710,-245.0,0.00015872,2]
[391285116,1760469031720,-201.41891184,0.00015875,2]
[391285117,1760469031730,-5888.0,0.00015875,2]
[391285118,1760469031740,-166.66,0.0001594,2]
[391285119,1760469031750,-694.95,0.00016005,2]
[391285120,1760469031759,-694.95,0.00016005,2]
[391285121,1760469031769,-694.95,0.00016005,2]
[391285122,1760469031778,-694.95,0.00016005,2]
[391285123,1760469031788,-167.99,0.00016167,2]
[391285124,1760469031797,-2500.0,0.00016172,2]
[391285125,1760469031807,-300.0,0.00016172,2]
[391285126,1760469031817,-840.12,0.000162,2]
[391285127,1760469031826,-166.66,0.00016249,2]
[391285128,1760469031836,-3686.36117501,0.000163,2]
[391285129,1760469031846,-203.02476051,0.000163,2]
[391285130,1760469031855,-2363.76734226,0.000163,2]
[391285131,1760469031865,-177.51298412,0.000163,2]
[391285132,1760469031874,-422.8161,0.000163,2]
[391285133,1760469031883,-211.01969953,0.000163,2]
[391285134,1760469031893,-438.0,0.00016329,2]
[391285135,1760469031902,-435.7687223,0.00016338,2]
[391285136,1760469031912,-4637.7938,0.00016338,2]
[391285137,1760469031921,-2500.0,0.00016338,2]
[391285138,1760469031930,-5000.0,0.00016338,2]
[391285139,1760469031939,-3686.36117496,0.00016365,2]
[391285140,1760469031949,-2363.76734225,0.00016365,2]
[391285141,1760469031958,-1500.0,0.00016366,2]
[391285142,1760469031969,-500.0,0.00016373,2]
[391285143,1760469031979,-906.87248864,0.00016377,2]
[391285144,1760469031990,-322.6107,0.0001639,2]
[391285145,1760469031999,-2000.0,0.0001639,2]
[391285146,1760469032010,-2000.0,0.0001639,2]
[391285147,1760469032020,-500.0,0.0001639,2]
[391285148,1760469032029,-500.0,0.0001639,2]
[391285149,1760469032040,-500.0,0.0001639,2]
[391285150,1760469032051,-2000.0,0.0001639,2]
[391285151,1760469032063,-500.0,0.0001639,2]
[391285152,1760469032073,-500.0,0.0001639,2]
[391285153,1760469032083,-2000.0,0.0001639,2]
[391285154,1760469032093,-500.0,0.0001639,2]
[391285155,1760469032102,-500.0,0.0001639,2]
[391285156,1760469032111,-2000.0,0.0001639,2]
[391285157,1760469032120,-2000.0,0.0001639,2]